[Event "Israeli Team-ch 2023"]
[Site "Petah Tikva"]
[Date "2023.01.20"]
[Round "3.8"]
[White "Gorodetzky, Matan"]
[Black "Nabaty, Tamir"]
[Result "0-1"]
[ECO "C41"]
[WhiteElo "2333"]
[BlackElo "2632"]
[Annotator "TA"]
[PlyCount "98"]
[EventDate "2023.01.13"]
[EventCountry "ISR"]
[SourceTitle "playchess.com"]
[Source "ChessBase"]
[SourceQuality "1"]
[TimeControl "40/5400+30:1800+30"]

{[%evp 18,98,56,22,44,28,26,27,33,31,40,22,20,24,83,47,25,-22,0,-18,-39,-75,-68,-80,-74,-57,-59,-58,-6,-64,-24,-33,-34,-35,-29,-38,-37,-260,-269,-261,-260,-251,-235,-308,-309,-350,-197,-388,-373,-415,-71,-67,-100,-445,-410,-763,-724,-1261,-506,-793,-547,-745,-693,-878,-868,-1270,-897,-857,-574,-2035,-1604,-1436,-1103,-29987,-29987,-29988,-29989,-29991,-29992,-29995,-29996,-29996,-742]} 1. e4 {[%emt 0:00:06]} d6 {[%emt 0:03:21]} 2. d4 {[%emt 0:00:09]} Nf6 {[%emt 0:00:04]} 3. Nc3 {[%emt 0:00:05]} e5 {[%emt 0:00:03]} 4. Nf3 {[%emt 0:00:17]} Nbd7 {[%emt 0:00:06]} 5. Bc4 {[%emt 0:00:36]} Be7 {[%emt 0:00:07]} 6. O-O {[%emt 0:00:28]} O-O {[%emt 0:00:08]} 7. Re1 {[%emt 0:03:08]} c6 {[%emt 0:00:10]} 8. a4 {[%emt 0:00:14]} a5 {[%emt 0:00:08]} 9. h3 {[%emt 0:03:44]} h6 {[%emt 0:02:43]} 10. Ba2 {[%emt 0:04:13]} exd4 {[%emt 0:05:22] C41: Philidor Defence.} 11. Nxd4 {[%emt 0:03:26]} Nc5 {[%emt 0:05:32]} 12. Qf3 {[%emt 0:05:57]} Be6 {[%emt 0:02:36] White has an edge.} 13. Nf5 {[%emt 0:04:09] [#]} Qd7 $146 {[%emt 0:21:40]} ({Predecessor:} 13... Kh8 14. e5 dxe5 15. Rxe5 Ncd7 16. Rxe6 fxe6 17. Bxe6 Nc5 18. Ba2 Ng8 19. Qg4 Bg5 20. Be3 Qc8 21. Nxh6 Bxe3 22. Nf7+ Rxf7 23. Qh5+ Nh6 24. Bxf7 Bd4 {1-0 Skrzypczak,M (1865)-Bachorczyk,M (2003) POL-chT 2nd League 2021 (1.16)}) 14. Nxh6+ {[%emt 0:13:17][%mdl 64] Demolition} gxh6 {[%emt 0:00:23]} 15. Bxh6 {[%emt 0:00:03]} Kh8 {[%emt 0:00:10]} 16. Bxf8 {[%emt 0:00:23]} Rxf8 {[%emt 0:00:07]} 17. Bxe6 {[%emt 0:00:27]} (17. e5 $142 dxe5 18. Rxe5) 17... fxe6 $11 {[%emt 0:03:31]} 18. e5 {[%emt 0:05:09]} Nh7 {[%emt 0:02:02][%mdl 1024] Black has compensation.} 19. Qe3 {[%emt 0:05:44]} d5 {[%emt 0:03:09]} 20. Rad1 {[%emt 0:00:24][%cal Ba1d1,Bd1d4,Bd4g4][%mdl 32]} Qe8 $1 {[%emt 0:07:41]} 21. Rd4 {[%emt 0:09:44]} Qg6 {[%emt 0:01:57]} 22. Re2 {[%emt 0:00:51]} Rf5 {[%emt 0:08:12]} (22... Rg8 23. Rg4 Qf5 24. Qg3 Rxg4 25. Qxg4 $11) (22... Qh5 $15) 23. Kh1 {[%emt 0:08:46]} ({White should try} 23. Rg4 $11 Rg5 24. Qf4) 23... Nd7 {[%emt 0:03:27][%cal Oe7c5] Black is more active.} 24. Rg4 {[%emt 0:00:17]} Qf7 {[%emt 0:00:32] Strongly threatening ...Bc5.} (24... Rg5 25. Rxg5 Bxg5 26. f4 $14) 25. f4 {[%emt 0:00:17]} Bc5 {[%emt 0:00:35]} 26. Qd2 {[%emt 0:06:40]} Nhf8 {[%emt 0:01:53]} 27. g3 $2 {[%emt 0:04:49] [#]} ({White should play} 27. Kh2 $15) 27... Nxe5 $1 $19 {[%emt 0:01:07][%mdl 512]} 28. Nd1 {[%emt 0:04:52]} (28. fxe5 {leads to mate.} Rf1+ 29. Kh2 Rh1+ 30. Kxh1 Qf1+ 31. Kh2 Qg1#) 28... Nxg4 {[%emt 0:04:38]} 29. hxg4 {[%emt 0:00:20]} Rf6 {[%emt 0:00:05]} 30. g5 {[%emt 0:01:22] [#]} Rf5 {[%emt 0:00:11]} 31. Qxa5 {[%emt 0:01:47]} d4 {[%emt 0:02:10]} (31... Kg8 $142 {( -> ...Qh5+)} 32. Rh2 Bd4) 32. Qe1 $2 {[%emt 0:00:39]} (32. Kg2 {was necessary.}) 32... Bd6 {[%emt 0:00:41][%cal Oe6e5] ...e5! would be deadly.} 33. Rh2+ {[%emt 0:03:56] [#]} Kg8 $2 {[%emt 0:03:22]} (33... Kg7 $1 $19 {is more deadly.} 34. Rh6 Bc7) 34. Nf2 $17 {[%emt 0:03:40]} e5 {[%emt 0:01:04] Black converts the advantage convincingly.} (34... Kg7 {with more complications.} 35. Qe4 e5 36. Rh6 Ng6) 35. Ne4 $2 {[%emt 0:00:46][%mdl 8192]} (35. Qe4 $17 {is tougher.} Kg7 36. Rh6) 35... Be7 $19 {[%emt 0:03:43]} ({Don't go for} 35... Qd5 $2 36. c4 dxc3 37. bxc3 $19) 36. Rh6 {[%emt 0:04:02]} (36. Rf2 $142) 36... exf4 {[%emt 0:01:00] White must now prevent ...Re5.} 37. g4 {[%emt 0:00:54]} Bxg5 {[%emt 0:02:39]} (37... Re5 $142 38. Kh2 f3) 38. Rh5 {[%emt 0:01:20] Repels Qd5} (38. gxf5 $142 Bxh6 39. Qg1+ Kh7 40. Qxd4) 38... Qg6 {[%emt 0:01:53] Threatens to win with ...Re5.} 39. Qe2 {[%emt 0:00:52]} Re5 {[%emt 0:01:46]} 40. Qc4+ {[%emt 0:00:05]} Qe6 {[%emt 0:00:40]} 41. Qxd4 {[%emt 0:02:51]} Nh7 {[%emt 0:06:32]} (41... Qxg4 $2 42. Rxg5+ Qxg5 43. Qc4+ Kg7 44. Nxg5 Rxg5 45. Qb4 $18) 42. Nf2 {[%emt 0:04:25]} Rd5 {[%emt 0:04:06]} 43. Qa7 {[%emt 0:02:30]} f3 {[%emt 0:00:46]} 44. Qb8+ {[%emt 0:00:26]} Bd8 {[%emt 0:01:00]} 45. Kh2 {[%emt 0:01:48]} Rd2 {[%emt 0:01:41] Black mates.} 46. Kg3 {[%emt 0:00:24]} Qe1 {[%emt 0:00:16]} 47. Rh2 {[%emt 0:01:44]} Qg1+ {[%emt 0:01:02]} 48. Kxf3 {[%emt 0:00:20]} Ng5+ {[%emt 0:00:21]} 49. Ke3 {[%emt 0:00:05]} Qe1+ {[%emt 0:00:33][%mdl 64] Deflection. An interesting game.   Weighted Error Value: White=1.25/Black=0.72} ({Don't take} 49... Rxc2 50. Qxd8+ Kf7 51. Qd7+ Kg8 52. Qe8+ Kg7 53. Qe5+ Kf7 54. Qf5+ Ke8 55. Rh8+ Ke7 56. Qxg5+) 0-1

[Event "Israeli Team-ch 2023"]
[Site "Petah Tikva"]
[Date "2023.01.20"]
[Round "3.9"]
[White "Postny, Evgeny"]
[Black "Zlatin, Alexander"]
[Result "1-0"]
[ECO "A57"]
[WhiteElo "2556"]
[BlackElo "2324"]
[Annotator "TA"]
[PlyCount "101"]
[EventDate "2023.01.13"]
[EventCountry "ISR"]
[SourceTitle "playchess.com"]
[Source "ChessBase"]
[SourceQuality "1"]
[TimeControl "40/5400+30:1800+30"]

{[%evp 11,101,29,30,23,65,60,40,70,62,52,71,69,72,64,86,71,71,74,73,77,82,76,105,97,101,105,100,96,134,112,173,134,199,173,177,146,187,188,178,154,268,245,314,320,315,315,332,314,381,372,404,164,258,229,233,235,219,198,202,198,711,710,1003,1000,966,960,950,944,1477,1313,1723,1680,2022,2106,6599,4045,29982,29983,29984,29985,29985,29986,29986,29987,29987,29987,29988,0,29987,29988,29988,29989]} 1. d4 {[%emt 0:00:05]} Nf6 {[%emt 0:00:07]} 2. c4 {[%emt 0:00:11]} c5 {[%emt 0:00:18]} 3. d5 {[%emt 0:00:09]} b5 {[%emt 0:00:03]} 4. cxb5 {[%emt 0:03:12]} a6 {[%emt 0:00:14]} 5. e3 {[%emt 0:00:10]} e6 {[%emt 0:03:46]} 6. Nc3 {[%emt 0:01:21]} exd5 {[%emt 0:12:31]} 7. Nxd5 {[%emt 0:00:58] A57: Benko/Volga Gambit.} axb5 {[%emt 0:01:02]} 8. Nxf6+ {[%emt 0:01:22]} Qxf6 {[%emt 0:05:24]} 9. Bxb5 {[%emt 0:00:09] White is slightly better.} Bb7 {[%emt 0:02:21]} 10. Nf3 {[%emt 0:00:52]} Be7 {[%emt 0:03:34]} 11. O-O {[%emt 0:00:29]} O-O {[%emt 0:00:48]} 12. a4 {[%emt 0:01:59] [#]} (12. Bxd7 $2 Rd8 13. e4 Rxd7 $19) 12... d5 $146 {[%emt 0:04:25]} ({Predecessor:} 12... h6 13. Ra2 d5 14. b3 Rd8 15. Rd2 Na6 16. Bb2 Qb6 17. Ne5 Nc7 18. Bd3 Bf6 {1-0 Jianu,V (2560)-Shirazi,K (2411) Avoine op 28th 2013 (5)}) 13. Rb1 {[%emt 0:04:24]} Rd8 {[%emt 0:07:23]} 14. b3 {[%emt 0:03:43]} Na6 {[%emt 0:03:23]} 15. Bb2 {[%emt 0:01:15]} Qe6 {[%emt 0:00:33]} 16. Re1 {[%emt 0:05:12]} Bf6 {[%emt 0:03:06]} 17. Qd2 {[%emt 0:12:23]} Bxb2 {[%emt 0:12:09]} 18. Qxb2 {[%emt 0:01:07]} Nb4 {[%emt 0:00:56]} 19. h3 {[%emt 0:10:56]} f6 {[%emt 0:06:30]} 20. Red1 {[%emt 0:03:34]} Kh8 {[%emt 0:02:39]} (20... Rab8 $16) 21. Ne1 {[%emt 0:00:45][%cal Bf3e1,Be1c2,Bc2b4][%mdl 32]} Qe4 {[%emt 0:04:04]} (21... Ba6 $16) 22. Be2 {[%emt 0:01:57]} Ba6 {[%emt 0:01:40]} 23. Bxa6 {[%emt 0:01:08]} Rxa6 {[%emt 0:00:16]} 24. Rbc1 {[%emt 0:00:59]} Rc6 {[%emt 0:02:32]} 25. Nc2 {[%emt 0:03:19]} f5 {[%emt 0:12:33]} (25... Nd3 $2 26. Rxd3 Qxd3 27. Nb4 cxb4 28. Rxc6) (25... Na6 $16 {was worth a try.} 26. Qc3 Qe8) 26. Nxb4 {[%emt 0:01:04]} Rg6 {[%emt 0:00:03][%csl Gg6][%cal Re4g2]} 27. f3 {[%emt 0:01:13]} (27. Rxc5 $2 Qxg2#) 27... Qxb4 {[%emt 0:01:08]} 28. Qc3 {[%emt 0:04:39]} Qh4 {[%emt 0:01:05]} 29. Kh1 {[%emt 0:01:09]} ({Don't take} 29. Qxc5 $6 Qxh3 30. Rc2 (30. Rxd5 $2 Qxg2#) (30. Rd2 Qxf3 31. Qe7 Rg8 $16) 30... Qxf3 $18) 29... Qg3 {[%emt 0:01:18][%csl Gg6][%cal Rg3g2]} 30. Rc2 {[%emt 0:01:00]} (30. Qxc5 $2 Qxg2#) 30... Rh6 {[%emt 0:03:07][%cal Oh6h3]} 31. Qe1 $40 {[%emt 0:02:26][%mdl 128] White is out for blood.} (31. Qxc5 Rxh3+ 32. gxh3 Qxf3+ 33. Kh2 Qxd1 $16) (31. Rcd2 $142) 31... Qc7 {[%emt 0:02:22]} (31... Qxe1+ $142 32. Rxe1 Rb6 33. Rxc5 Rxb3) 32. Rd3 {[%emt 0:08:55]} Re6 {[%emt 0:01:09]} 33. Qc1 {[%emt 0:01:09]} Rc6 {[%emt 0:01:43] [#]} 34. b4 $1 {[%emt 0:03:30][%cal Rc2c5,Bb3b4,Bb4b5][%mdl 544]} c4 {[%emt 0:00:04]} 35. b5 {[%emt 0:00:18]} Re6 {[%emt 0:01:43] [#]} (35... Rc5 36. Qa3 Qa5) 36. Rxc4 $3 $18 {[%emt 0:07:23][%mdl 512]} Qa5 {[%emt 0:01:14]} (36... dxc4 37. Qxc4) 37. Rc8 {[%emt 0:02:15]} Ree8 {[%emt 0:00:52]} 38. Rxd8 {[%emt 0:00:07]} Rxd8 {[%emt 0:00:02][%mdl 4096] Endgame KQR-KQR} 39. Qd1 {[%emt 0:00:13]} f4 {[%emt 0:00:30]} 40. e4 {[%emt 0:03:13]} ({Weaker is} 40. Rxd5 Rxd5 41. Qxd5 Qe1+ 42. Kh2 Qg3+ 43. Kh1 Qe1+ 44. Kh2 Qg3+ 45. Kh1 Qe1+ $11) 40... d4 {[%emt 0:01:11]} 41. Rxd4 {[%emt 0:30:20]} Re8 {[%emt 0:04:19]} 42. Qd2 {[%emt 0:00:00]} Qb6 {[%emt 0:06:55]} 43. Rd6 {[%emt 0:00:00]} Qc7 {[%emt 0:01:18]} 44. b6 {[%emt 0:00:00]} Qe7 {[%emt 0:02:53]} 45. a5 {[%emt 0:00:00][%cal Ba4a5,Ba5a6][%mdl 32]} h6 {[%emt 0:01:06]} 46. a6 {[%emt 0:00:00]} Kh7 {[%emt 0:01:22]} 47. b7 {[%emt 0:00:00]} Qe5 {[%emt 0:00:17]} 48. Qd4 {[%emt 0:00:00]} Qa5 {[%emt 0:00:08]} 49. Qd2 {[%emt 0:00:00]} Qe5 $1 {[%emt 0:01:07]} 50. Kh2 {[%emt 0:00:00]} Qc5 {[%emt 0:00:36]} 51. Qxf4 {[%emt 0:00:00] Weighted Error Value: White=0.19 (very precise) /Black=0.48} 1-0

[Event "Israeli Team-ch 2023"]
[Site "Petah Tikva"]
[Date "2023.01.20"]
[Round "3.10"]
[White "Bitensky, Igor"]
[Black "Steinberg, Nitzan"]
[Result "0-1"]
[ECO "B23"]
[WhiteElo "2370"]
[BlackElo "2537"]
[Annotator "TA"]
[PlyCount "126"]
[EventDate "2023.01.13"]
[EventCountry "ISR"]
[SourceTitle "playchess.com"]
[Source "ChessBase"]
[SourceQuality "1"]
[TimeControl "40/5400+30:1800+30"]

{[%evp 9,126,6,14,-8,0,0,26,0,0,0,0,0,34,0,29,-26,-25,-56,-39,-27,-50,-82,-79,-93,-72,-76,-69,-194,-125,-131,-122,-187,-192,-229,-229,-238,-233,-228,-220,-229,-232,-253,-223,-243,-243,-239,-235,-235,-222,-212,-236,-206,-226,-229,-224,-366,-324,-471,-455,-1201,-1166,-930,-587,-565,-565,-495,-250,-399,-509,-495,-505,-505,-505,-491,-494,-494,-485,-471,-484,-462,-458,-450,-443,-1280,-1183,-1114,-684,-1071,-1063,-1002,-981,-875,-681,-1075,-1021,-1039,-908,-638,-541,-762,-801,-744,-29962,-29962,-29962,-29963,-29963,-1727,-1133,-29968,-29973,-29973,-29974,-29974,-29973,-29978,-29979,-29980,-29980]} 1. e4 {[%emt 0:03:48]} c5 {[%emt 0:00:13]} 2. Nc3 {[%emt 0:00:55]} d6 {[%emt 0:00:09]} 3. d4 {[%emt 0:05:32]} cxd4 {[%emt 0:00:07]} 4. Qxd4 {[%emt 0:00:02]} Nc6 {[%emt 0:00:11]} 5. Qd2 {[%emt 0:00:02]} g6 {[%emt 0:02:58]} 6. b3 {[%emt 0:05:27] B23: Closed Sicilian: Lines without g3.} Bh6 {[%emt 0:05:28]} 7. f4 {[%emt 0:00:02]} Nf6 {[%emt 0:00:23]} 8. Bb2 {[%emt 0:00:48] White has an edge.} e5 {[%emt 0:01:41]} 9. g3 {[%emt 0:02:32]} O-O {[%emt 0:00:20]} 10. O-O-O {[%emt 0:04:13]} Re8 {[%emt 0:04:10]} 11. Kb1 {[%emt 0:12:48]} (11. Qxd6 Bg4 12. Qxd8 Rexd8 13. Rxd8+ Rxd8 $15) 11... Nd4 {[%emt 0:08:43][%cal Ob7b5] [#]} 12. h3 $146 {[%emt 0:05:52] [#]} (12. Bg2 $142) ({Predecessor:} 12. Bg2 Bg4 13. Rf1 d5 14. h3 Be6 15. g4 Nxe4 16. Nxe4 dxe4 17. Bxe4 Rc8 18. Qd3 {0-1 Shirov,A (2704)-Dominguez Perez,L (2752) Berlin FIDE GP 1 Pool-D 2022 (2)}) 12... b5 $1 $11 {[%emt 0:17:59][%cal Bb7b5,Bb5b4][%mdl 32]} 13. Bg2 {[%emt 0:28:28]} (13. Nxb5 Nxe4) 13... Bb7 $1 {[%emt 0:02:28] Hoping for ...Rc8.} 14. Nge2 {[%emt 0:00:58]} b4 {[%emt 0:06:02]} 15. Nd5 {[%emt 0:00:32]} Bxd5 {[%emt 0:02:46]} 16. exd5 {[%emt 0:00:41]} Nxe2 {[%emt 0:00:28]} 17. Qxe2 {[%emt 0:00:01][%cal Rf4e5]} exf4 {[%emt 0:00:12]} 18. Qc4 {[%emt 0:04:37]} ({White should play} 18. Qd2 $1 $15) 18... a5 {[%emt 0:10:06]} (18... fxg3 $19 {And now ...Rc8 would win.} 19. Qxb4 Nh5) 19. gxf4 $17 {[%emt 0:01:45]} Rc8 {[%emt 0:01:55]} 20. Qd4 {[%emt 0:00:13]} (20. Qf1 $17) 20... Bg7 $1 $19 {[%emt 0:00:58]} 21. Qd2 {[%emt 0:01:40]} Ne4 {[%emt 0:12:19]} 22. Bxe4 {[%emt 0:00:27]} Bxb2 {[%emt 0:00:05]} (22... Rxe4 23. Bxg7 Kxg7 24. f5 $17) 23. Kxb2 {[%emt 0:00:39] Qd4 would be deadly.} Rxe4 {[%emt 0:00:05]} 24. Kb1 {[%emt 0:03:08]} Qf6 {[%emt 0:00:11] Inhibits f5.} 25. Rhf1 {[%emt 0:01:21]} Qf5 {[%emt 0:00:21]} 26. Rf3 {[%emt 0:01:53]} Rc5 {[%emt 0:02:17]} 27. Kb2 {[%emt 0:03:23]} Qf6+ {[%emt 0:01:10]} 28. Kb1 {[%emt 0:00:02]} Rc3 {[%emt 0:03:30]} 29. Rxc3 {[%emt 0:04:31]} bxc3 {[%emt 0:00:05][%mdl 4096] Endgame KQR-KQR} 30. Qd3 {[%emt 0:00:04]} Rxf4 {[%emt 0:00:07]} ({Worse is} 30... Qxf4 31. Qxc3 a4 32. Kb2 $15) 31. a4 {[%emt 0:00:20]} Qe5 {[%emt 0:04:06]} 32. Qb5 {[%emt 0:03:23]} (32. Qa6 {might work better.} Rd4 33. Rf1) 32... Rd4 {[%emt 0:01:03]} 33. Qf1 {[%emt 0:04:32]} (33. Rc1 $142 Rxd5 34. Qc4) 33... Qxd5 {[%emt 0:03:19]} (33... Rxd5 $2 34. Re1 Qd4 35. Ka2 $19) 34. Rxd4 {[%emt 0:00:52]} (34. Rc1 $142 Rd2 35. Qh1) 34... Qxd4 {[%emt 0:00:05] KQ-KQ} 35. Qd3 {[%emt 0:01:44]} Qc5 {[%emt 0:03:59]} 36. Ka2 {[%emt 0:00:01]} f5 {[%emt 0:03:37]} 37. Qb5 {[%emt 0:00:09]} Kf7 {[%emt 0:03:47] Inhibits Qe8+.} (37... Kg7 $142 {aiming for ...Qf2.} 38. Qb7+ Kh6) 38. b4 {[%emt 0:00:30]} (38. Qd7+ $142 Kf6 39. Qxh7) 38... axb4 {[%emt 0:00:30] White must now prevent ...f4.} (38... Qxb4 $2 {perishes.} 39. Qxb4 axb4 40. a5 $19) 39. Qxc5 {[%emt 0:01:13]} dxc5 {[%emt 0:00:01] KP-KP} 40. a5 {[%emt 0:00:05] Strongly threatening a6.} f4 {[%emt 0:00:09]} 41. a6 {[%emt 0:30:03]} f3 {[%emt 0:30:05]} 42. a7 {[%emt 0:00:02]} f2 {[%emt 0:00:04]} 43. a8=Q {[%emt 0:00:02]} f1=Q {[%emt 0:00:07] Repels Qf3+. KQ-KQ} ({But not} 43... f1=R 44. Qa7+ Kg8 45. Qxc5 $18) 44. Qd5+ {[%emt 0:00:34]} Kg7 {[%emt 0:01:52] ...Qf7 is the strong threat.} 45. Qxc5 {[%emt 0:01:57]} Qxh3 {[%emt 0:00:00]} 46. Qxb4 {[%emt 0:00:00]} (46. Qc7+ $142 Kh6 47. Kb3) 46... Qe6+ {[%emt 0:00:00]} 47. Kb1 {[%emt 0:00:00]} Qe1+ {[%emt 0:00:00]} 48. Ka2 {[%emt 0:00:00]} h5 {[%emt 0:00:00]} 49. Qd4+ {[%emt 0:03:09]} Kh7 {[%emt 0:00:00]} 50. Qf6 {[%emt 0:00:00]} h4 {[%emt 0:00:00] Threatens to win with ...h3.} 51. Qf7+ {[%emt 0:00:00]} Kh6 {[%emt 0:00:00]} 52. Qf8+ {[%emt 0:00:00]} Kg5 {[%emt 0:00:00]} 53. Qd8+ {[%emt 0:00:00]} Kh5 {[%emt 0:00:00]} 54. Qh8+ {[%emt 0:00:00]} Kg4 {[%emt 0:00:00] ( -> ...g5)} 55. Qc8+ {[%emt 0:00:00]} Kg3 {[%emt 0:00:00]} 56. Qc7+ {[%emt 0:00:00] [#]} Kh3 $1 {[%emt 0:00:00]} 57. Qd7+ {[%emt 0:00:00] [#]} Kh2 $1 {[%emt 0:00:00]} 58. Qg4 {[%emt 0:00:00]} Qg3 {[%emt 0:00:00]} 59. Qe2+ {[%emt 0:00:00]} Kg1 {[%emt 0:00:00] Black mates.} 60. Qd1+ {[%emt 0:00:00]} Kf2 {[%emt 0:00:00]} 61. Qd4+ {[%emt 0:00:00]} Ke2 {[%emt 0:00:00]} 62. Kb3 {[%emt 0:00:00]} g5 {[%emt 0:00:00]} 63. Qe4+ {[%emt 0:00:00]} Kf2 {[%emt 0:00:00] Weighted Error Value: White=0.42/Black=0.33} 0-1

[Event "Israeli Team-ch 2023"]
[Site "Petah Tikva"]
[Date "2023.01.20"]
[Round "3.11"]
[White "Kobo, Ori"]
[Black "Gofman, Alex"]
[Result "1-0"]
[ECO "C65"]
[WhiteElo "2546"]
[BlackElo "2224"]
[Annotator "TA"]
[PlyCount "111"]
[EventDate "2023.01.13"]
[EventCountry "ISR"]
[SourceTitle "playchess.com"]
[Source "ChessBase"]
[SourceQuality "1"]
[TimeControl "40/5400+30:1800+30"]

{[%evp 9,111,18,27,29,33,20,33,29,33,35,35,41,35,40,32,27,30,27,30,28,46,48,47,43,60,50,63,70,71,62,70,66,62,50,64,41,62,56,136,146,195,103,104,111,133,100,106,60,130,131,128,133,124,122,126,119,191,187,181,196,168,153,209,220,258,210,330,193,212,154,309,313,297,275,398,393,489,475,477,501,497,492,477,493,459,449,396,369,688,733,800,800,785,782,1253,1160,1407,1284,6111,6095,29984,29985,29985,29986]} 1. e4 {[%emt 0:00:22]} e5 {[%emt 0:00:21]} 2. Nf3 {[%emt 0:00:14]} Nc6 {[%emt 0:00:09]} 3. Bb5 {[%emt 0:00:12]} Bc5 {[%emt 0:00:40]} 4. c3 {[%emt 0:00:16]} Nf6 {[%emt 0:01:04]} 5. d3 {[%emt 0:04:59]} d6 {[%emt 0:03:00]} 6. d4 {[%emt 0:00:48] C65: Ruy Lopez: Berlin Defence (3...Nf6), unusual lines and 4 0-0 Bc5.} exd4 {[%emt 0:00:28]} 7. cxd4 {[%emt 0:00:07]} Bb4+ {[%emt 0:00:26]} 8. Bd2 {[%emt 0:02:48] White is slightly better.} Bxd2+ {[%emt 0:02:27]} 9. Nbxd2 {[%emt 0:00:57]} O-O {[%emt 0:01:42][%cal Of6e4]} 10. O-O {[%emt 0:03:05]} Ne7 {[%emt 0:02:35]} 11. Re1 {[%emt 0:07:09]} Ng6 {[%emt 0:00:50]} 12. Qc2 {[%emt 0:01:38]} c6 {[%emt 0:02:52]} 13. Bf1 {[%emt 0:00:41] [#]} Re8 $146 {[%emt 0:01:24]} ({Predecessor:} 13... Be6 14. g3 Qa5 15. Bg2 Rad8 16. a3 Rfe8 17. h4 Qb6 18. b3 Re7 19. Re3 Rde8 {1-0 Grigoryan,K (2647)-Bernabeu Lopez,C (2403) Seville op 46th 2021 (5)}) 14. h3 {[%emt 0:05:08]} d5 {[%emt 0:07:35]} 15. e5 {[%emt 0:00:55]} Nd7 {[%emt 0:00:15]} 16. b4 {[%emt 0:05:28]} a6 {[%emt 0:04:41]} 17. a4 {[%emt 0:10:36]} Ndf8 {[%emt 0:04:38]} 18. g3 {[%emt 0:04:56]} Bd7 {[%emt 0:09:39]} 19. Nb3 {[%emt 0:03:40]} f6 {[%emt 0:09:40]} 20. Nc5 {[%emt 0:08:10]} fxe5 {[%emt 0:03:28]} 21. dxe5 {[%emt 0:01:29]} (21. Nxb7 Qc7 22. Nc5 e4 $11) 21... Qc8 {[%emt 0:04:01]} 22. Kh2 {[%emt 0:02:29] White has more active pieces.} Bf5 {[%emt 0:01:32]} 23. Qc3 {[%emt 0:07:51]} b6 {[%emt 0:02:06]} ({Better is} 23... Nd7 $14) 24. Nb3 $1 $16 {[%emt 0:01:41]} Be4 {[%emt 0:03:41] [#]} (24... Ne6 $16) 25. Nbd2 {[%emt 0:00:56]} (25. Nfd2 $1 $18) 25... Bxf3 {[%emt 0:11:24]} 26. Nxf3 {[%emt 0:00:13]} Qf5 {[%emt 0:02:19]} 27. Re3 {[%emt 0:03:50]} Ne7 {[%emt 0:04:49]} 28. Kg2 {[%emt 0:09:14]} ({White should try} 28. a5 $16) 28... Qd7 {[%emt 0:01:43]} (28... Qc8 $14) 29. a5 {[%emt 0:03:56]} b5 {[%emt 0:01:04][%cal Od5d4]} 30. Nd4 {[%emt 0:02:29]} Ne6 {[%emt 0:00:36] ...Nxd4 is the strong threat.} 31. Bd3 {[%emt 0:02:16]} Nxd4 {[%emt 0:01:11]} 32. Qxd4 {[%emt 0:00:01]} Nf5 {[%emt 0:00:22]} (32... Qa7 $16 33. Qh4 Ng6 34. Bxg6 hxg6) 33. Bxf5 $18 {[%emt 0:00:08]} Qxf5 {[%emt 0:00:06] [#]} 34. Rc1 $1 {[%emt 0:00:40]} Qd7 {[%emt 0:05:28] Black is weak on the dark squares} 35. f4 {[%emt 0:00:43]} h5 {[%emt 0:00:48]} (35... g6 $16 36. h4 Rac8) 36. Qd3 {[%emt 0:04:09]} d4 {[%emt 0:03:45]} 37. Qb3+ {[%emt 0:01:01]} Kh8 {[%emt 0:02:11]} (37... Kh7 $142 38. Rd3 Rad8) 38. Rd3 {[%emt 0:00:22]} (38. e6 $142 Qd6 39. Re4) 38... Rad8 {[%emt 0:00:16]} 39. Qd1 {[%emt 0:03:41]} g6 {[%emt 0:01:01] This costs Black the game.} (39... Qd5+ $16 40. Qf3 Qa2+ 41. Kg1 h4 42. gxh4 (42. Rxc6 Rc8 $16) 42... Rf8) 40. Qf3 {[%emt 0:00:14]} Re6 {[%emt 0:00:58]} 41. Qe4 {[%emt 0:02:43]} Kg7 {[%emt 0:06:52]} (41... Kg8 $142 42. Kf3 Kg7) 42. Rcd1 {[%emt 0:02:28][%cal Rd3d4]} c5 {[%emt 0:00:56]} 43. bxc5 {[%emt 0:00:06][%cal Rd3d4]} Qc6 {[%emt 0:01:49]} 44. Qxc6 {[%emt 0:01:14]} (44. Rxd4 $2 {loses.} Qxe4+ 45. Rxe4 Rxd1 $19) 44... Rxc6 {[%emt 0:00:02]} 45. Rxd4 {[%emt 0:00:50]} Rxd4 {[%emt 0:00:19]} 46. Rxd4 {[%emt 0:00:02]} Rxc5 {[%emt 0:00:14][%mdl 4096] Endgame KR-KR} 47. Rd7+ {[%emt 0:01:10]} Kf8 {[%emt 0:00:51]} 48. Rd6 {[%emt 0:02:56][%csl LRa6,LRg6]} Rc2+ $2 {[%emt 0:00:20]} (48... b4 49. Rxa6 b3) 49. Kf3 {[%emt 0:00:10]} Rc3+ {[%emt 0:00:11]} 50. Ke4 {[%emt 0:01:57]} Rxg3 {[%emt 0:00:24]} 51. Rxa6 {[%emt 0:00:12]} Rxh3 {[%emt 0:01:12]} 52. Rxg6 {[%emt 0:00:12]} h4 {[%emt 0:00:50]} 53. Rb6 {[%emt 0:06:04][%cal Oa5a6] a6! would kill now.} Rb3 {[%emt 0:00:29]} 54. a6 {[%emt 0:01:00][%cal Ba5a6,Ba6a7][%mdl 32] Threatening mate with a7.} h3 {[%emt 0:00:42]} 55. a7 {[%emt 0:00:15]} Ra3 {[%emt 0:00:20]} 56. Rb8+ {[%emt 0:00:12] Weighted Error Value: White=0.14 (very precise) /Black=0.40} ({Inferior is} 56. Rxb5 h2 57. Rb1 (57. Rb8+ Kg7 $11) 57... Rxa7 $11) 1-0